Cogmind - Beta 16.1 @@@ ROGUE MODE // 2026.03.01 @ 00:38:51 Player: Krysmphoenix Result: Destroyed by D-53 Grenadier with Mini Grenade Launcher Performance ------------- Evolutions (0) 0 Regions Visited (2) 400 Robots Destroyed (26) 130 Value Destroyed (617) 617 Prototype IDs (0) 0 Alien Tech Used (0) 0 Bonus (39) 39 TOTAL SCORE: 1186 Bonus ------- Follower Combat Kills 39 Cogmind --------- Core Integrity 0/250 Matter 275/300 Energy 100/100 System Corruption 0% Temperature Cool (0) Movement Rolling (80) Location -10/Mines Parts ------- > --- POWER (1) -------- (None) > --- PROPULSION (2) --- Wheel Wheel > --- UTILITY (2) ------ Improved Heat Sink Targeting Computer > --- WEAPON (2) ------- (None) > --- INVENTORY (5) ---- Improved Heat Sink Large Battery (200) Peak State ------------ > --- POWER ------------ Light Nuclear Core > --- PROPULSION ------- Wheel Wheel > --- UTILITY ---------- Improved Heat Sink ECM Suite > --- WEAPON ----------- Medium Laser Small Laser > --- INVENTORY -------- Ion Engine Wheel Wheel EM Pulse Gun Grenade Launcher [Rating: 11] Favorites ----------- Power Light Nuclear Core Engine Ion Engine Power Core Light Nuclear Core Propulsion Wheel Wheel Wheel Utility Improved Heat Sink Device Improved Heat Sink Storage Small Storage Unit Processor Targeting Computer Weapon Beam Cannon Energy Gun Small Laser Energy Cannon Beam Cannon Ballistic Gun Assault Rifle Build | -11 -10 -10 ------- Run | Yrd Mat Min Slots Evolved . | . . . Power . | . . . Propulsion . | . . . Utility . | . . . Weapon . | . . . Parts Attached 23 | 8 12 3 Power 4 | 1 2 1 Engine 2 | 1 1 . Core 2 | . 1 1 Reactor . | . . . Propulsion 8 | 3 3 2 Treads . | . . . Leg . | . . . Wheel 8 | 3 3 2 Hover . | . . . Flight . | . . . Utility 5 | 2 3 . Device 3 | 1 2 . Storage 1 | 1 . . Processor 1 | . 1 . Hackware . | . . . Protection . | . . . Artifact . | . . . Weapon 6 | 2 4 . Energy Gun 3 | 1 2 . Energy Cannon 2 | . 2 . Ballistic Gun 1 | 1 . . Ballistic Cannon . | . . . Launcher . | . . . Special Weapon . | . . . Impact Weapon . | . . . Slashing Weapon . | . . . Piercing Weapon . | . . . Special Melee Weapon . | . . . Unidentified Prototypes . | . . . Parts Lost 7 | . 1 6 Power 2 | . . 2 Propulsion 3 | . 1 2 Utility . | . . . Weapon 2 | . . 2 Highest Loss Streak 6 | . 1 6 To Critical Strikes . | . . . Average Backups 4 | 2 5 4 Power . | . . . Propulsion 2 | . 2 1 Utility 1 | . 1 2 Weapon 1 | 1 1 . Tool/Special . | . . . Unused Backups 7 | . 3 4 Power 2 | . 2 . Propulsion . | . . . Utility 3 | . . 3 Weapon 2 | . 1 1 Tool/Special . | . . . Average Slot Usage (%) 98 | . 98 96 Engine 5 | . 7 . Core 7 | . 6 13 Wheel 27 | . 27 28 Device 15 | . 15 14 Storage 4 | . 6 . Processor 7 | . 6 14 Energy Gun 11 | . 15 . Energy Cannon 14 | . 12 25 Peak Build Rating 11 | 9 11 11 Average Rating 9 | 5 9 10 On Entrance 6 | . 9 11 Avg Prop Armor Cover (%) . | . . . Naked Turns . | . . . Heaviest Build 14 | 12 14 12 Greatest Support 26 | 26 20 20 Greatest Overweight (x) 1 | . . 1 Average Overweight (x) . | . . . Largest Inventory Capacity 8 | 8 8 5 Average Capacity 6 | 7 6 5 Most Carried 7 | 7 7 5 Average Carried 4 | 2 5 4 Final Capacity 8 | 8 5 5 Final Carried 6 | 6 5 2 Class Distribution -------------------- 100% | Mutant Dominant Class ---------------- Mutant | -10/Materials Mutant | -10/Mines Resources | -11 -10 -10 ----------- Run | Yrd Mat Min Matter Collected 501 | 333 158 10 Remotely . | . . . Salvage Created 933 | 193 539 201 Parts 52 | 13 29 10 Haulers Intercepted . | . . . Recyclers Shooed 2 | . 2 . Parts Field Recycled . | . . . Retrieved Matter . | . . . Parts Self-Destructed . | . . . Prevented . | . . . Parts Restored . | . . . Kills | -11 -10 -10 ------- Run | Yrd Mat Min Combat Hostiles Destroyed 16 | . 12 4 Guns 3 | . 3 . Cannons 12 | . 8 4 AOE 1 | . 1 . Classes Destroyed 7 | 3 4 . Worker 2 | 2 . . Tunneler 5 | 5 . . Recycler 2 | 1 1 . Watcher 1 | . 1 . Swarmer 3 | . 3 . Grunt 10 | . 6 4 Subdweller 3 | . 3 . Best Kill Streak 4 | 4 3 2 Combat Bots Only 3 | . 3 2 Max Kills in Single Turn 1 | 1 1 1 Gunslinging . | . . . Exploded 1 | . 1 . Melee . | . . . Uniques/NPCs Destroyed . | . . . Combat | -11 -10 -10 -------- Run | Yrd Mat Min Hostile Shots Fired 51 | . 38 13 Missed 13 | . 11 2 Hits 38 | . 27 11 Projectile 38 | . 27 11 AOE 10 | . . 10 Critical Strikes 4 | . 3 1 Damage Taken 857 | . 410 447 Core 257 | . 71 186 Absorbed by Shields . | . . . Regen/Repaired (Parts) 21 | . 21 . Core Remaining (%) 100 | 100 . . Volleys Fired 68 | 22 39 7 Largest 2 | 2 2 2 Hottest 120 | 60 120 120 Shots Fired 134 | 44 76 14 Gun 76 | 44 32 . Cannon 58 | . 44 14 Launcher . | . . . Special . | . . . Kinetic 22 | 22 . . Thermal 105 | 22 69 14 Explosive . | . . . Electromagnetic 7 | . 7 . Robot Hit Streak 10 | 8 10 8 Robot Miss Streak 3 | 3 3 1 Penetration Max . | . . . Secondary Targets . | . . . Shots Hit Robots 81 | 28 42 11 Core Hits 38 | 9 23 6 Critical Kills . | . . . Critical Parts Destroyed . | . . . Critical Strikes . | . . . Melee Attacks . | . . . Impact . | . . . Slashing . | . . . Piercing . | . . . Sneak Attacks . | . . . Combat Hostiles . | . . . Follow-up Attacks . | . . . Damage Inflicted 1319 | 323 789 207 Guns 544 | 323 221 . Cannons 680 | . 473 207 Explosions 95 | . 95 . Melee . | . . . Ramming . | . . . Kinetic 155 | 155 . . Thermal 1119 | 168 744 207 Explosive . | . . . Electromagnetic 45 | . 45 . Impact . | . . . Slashing . | . . . Piercing . | . . . Highest Corruption . | . . . Average Corruption . | . . . Corruption Purged . | . . . Corruption Blocked . | . . . Overload Shots . | . . . Overflow Damage . | . . . Projectiles . | . . . Explosions . | . . . Melee . | . . . Knockbacks . | . . . Impact . | . . . Kinetic . | . . . Secondary . | . . . Self-Inflicted Damage . | . . . Shots . | . . . Rammed . | . . . Targets Rammed . | . . . Kicked . | . . . Crushed . | . . . Highest Temperature 312 | . 312 132 Average Temperature 69 | . 72 55 Received Heat Transfer 240 | . 195 45 Siege Activations . | . . . Martial Activations . | . . . Shielding Activations . | . . . Robots Disrupted . | . . . Combat Hostiles . | . . . Robots Corrupted . | . . . Combat Hostiles . | . . . Parts Fried 1 | . 1 . Impact Corruptions . | . . . Robots Melted . | . . . Combat Hostiles . | . . . Parts Melted 5 | . 5 . Heat Transferred 2439 | 375 1620 444 Parts Sabotaged . | . . . Parts Stolen . | . . . Parts Stripped . | . . . Power Chain Reactions 1 | . 1 . Alert | -11 -10 -10 ------- Run | Yrd Mat Min Maximum Alert Level . | . . . Low Security (%) 100 | 100 100 100 Level 1 . | . . . Level 2 . | . . . Level 3 . | . . . Level 4 . | . . . Level 5 . | . . . High Security . | . . . Max Security . | . . . Peak Influence 70 | 10 70 69 Initial 9 | . . 9 Average 22 | 1 24 38 Influence Increases 451 | 40 290 121 Destroy 0b10 Robot/C 280 | . 180 100 Destroy 0b10 Robot/NC 50 | 40 10 . Destroy Leader 72 | . 52 20 Allied During Kill 1 | . . 1 Successful Hack 26 | . 26 . Disable Machine 15 | . 15 . Destroy Structure 7 | . 7 . Influence Decreases 451 | 40 264 147 Entered New Map 17 | . . 17 Time Decay 365 | 40 254 71 Lost Part 49 | . 10 39 Lost Ally 20 | . . 20 Squads Dispatched 2 | . 2 . Investigation 2 | . 2 . Extermination . | . . . Reinforcement . | . . . Assault . | . . . Garrison . | . . . Intercept . | . . . Searches Triggered . | . . . Construction Impeded . | . . . Haulers Reinforced . | . . . Active Scanning Responses . | . . . Cargo Convoy Interrupts . | . . . Stealth | -11 -10 -10 --------- Run | Yrd Mat Min Distress Signals 1 | . 1 . Communications Jammed . | . . . Distress Signals . | . . . Times Spotted 35 | . 17 18 Peak Tracking Total 21 | . 4 21 Tactical Retreats 1 | . 1 . Traps | -11 -10 -10 ------- Run | Yrd Mat Min Traps Triggered 2 | . 2 . Indirectly . | . . . Trap Hack Attempts . | . . . Triggered . | . . . Disarmed . | . . . Reprogrammed . | . . . Reused . | . . . Traps Extracted . | . . . Installed . | . . . Triggered . | . . . Machines | -11 -10 -10 ---------- Run | Yrd Mat Min Machines Disabled 1 | . 1 . Max in Single Turn 1 | . 1 . Machines Repaired . | . . . Machines Dismantled . | . . . Machines Sabotaged . | . . . Overloaded Fab Kills . | . . . Hacking | -11 -10 -10 --------- Run | Yrd Mat Min Machines Accessed 7 | . 7 . Terminals 5 | . 5 . Fabricators . | . . . Repair Stations 1 | . 1 . Recycling Units 1 | . 1 . Scanalyzers . | . . . Garrison Access . | . . . Total Hacks 21 | . 21 . Successful 15 | . 15 . Failed 6 | . 6 . Catastrophic . | . . . Database Lockouts . | . . . Manual 15 | . 15 . Terminals 18 | . 18 . Fabricators . | . . . Repair Stations 2 | . 2 . Recycling Units 1 | . 1 . Scanalyzers . | . . . Garrison Access . | . . . Terminal Hacks 4 | . 4 . Branch Access Points 1 | . 1 . Alert Level 1 | . 1 . Locate Traps 1 | . 1 . Zone Layout 1 | . 1 . Fabricator Hacks . | . . . Repair Station Hacks 2 | . 2 . Scan Component 1 | . 1 . Repair 1 | . 1 . Recycling Unit Hacks 1 | . 1 . Report Inventory 1 | . 1 . Scanalyzer . | . . . Garrison Access Hacks . | . . . Unauthorized Hacks 8 | . 8 . Terminals 8 | . 8 . Assimilate 4 | . 4 . Botnet 4 | . 4 . Fabricators . | . . . Repair Stations . | . . . Recycling Units . | . . . Scanalyzers . | . . . Garrison Access . | . . . Data Cores Recovered . | . . . Used . | . . . Hacking Detections 5 | . 5 . Full Trace Events 2 | . 2 . Feedback Events . | . . . Feedback Blocked . | . . . Robot Schematics Acquired . | . . . Robots Built . | . . . Authchips . | . . . Time . | . . . Total Robot Build Rating . | . . . Part Schematics Acquired . | . . . Parts Built . | . . . Authchips . | . . . Time . | . . . Total Part Build Rating . | . . . Part Studies Acquired . | . . . Parts Repaired 1 | . 1 . Time 38 | . 38 . Parts Recycled . | . . . Recycled Matter . | . . . Retrieved Matter . | . . . Retrieved Components . | . . . Parts Scanalyzed . | . . . Part Schematics Acquired . | . . . Parts Damaged . | . . . Bothacking | -11 -10 -10 ------------ Run | Yrd Mat Min Used RIF Installer . | . . . Robots Hacked . | . . . Non-combat . | . . . Combat . | . . . Robot Hacks Applied . | . . . Relay Couplers Released . | . . . Fabnet Peak Effective % . | . . . Robots Rewired . | . . . Allies Hacked . | . . . Hacks Repelled . | . . . Allies | -11 -10 -10 -------- Run | Yrd Mat Min Total Allies 1 | . . 1 Largest Group 1 | . . 1 Highest-Rated Group 31 | . . 31 Highest-Rated Ally 31 | . . 31 Total Orders . | . . . Ally Attacks 7 | . . 7 Total Damage 105 | . . 105 Kills 1 | . . 1 Allies Corrupted . | . . . Allies Melted . | . . . Intel | -11 -10 -10 ------- Run | Yrd Mat Min Active Infowar (turns) 357 | 12 345 . Terrain 280 | 12 268 . ECM 77 | . 77 . Robot Analysis Total . | . . . Derelict Logs Recovered 1 | . . 1 Drone Launches . | . . . Drone Recoveries . | . . . Exploration | -11 -10 -10 ------------- Run | Yrd Mat Min Turns Passed 1047 | 184 682 181 Spaces Moved 880 | 120 581 179 Core 21 | 14 . 7 Treads . | . . . Legs . | . . . Wheels 859 | 106 581 172 Hover . | . . . Flight . | . . . Fastest Speed 50 | 50 80 50 Average Speed 79 | 79 80 79 Slowest Speed 100 | 90 80 100 Overloaded Moves . | . . . Propulsion Burnouts . | . . . Robots Hopped . | . . . Potential Cave-ins 2 | . . 2 Cave-ins Triggered . | . . . Exploration Rate (%) 47 | 7 86 50 Regions Visited 2 Branch Regions 1 Pre-discovered Areas . | . . . Known Exits Taken 1 | . 1 . Unknown Exits Taken 1 | 1 . . Scrap Searched 1 | . . 1 Spaces Dug . | . . . Terrain Destroyed 6 | . 6 . Melee . | . . . Projectile . | . . . AOE 6 | . 6 . Terrain Rammed . | . . . Walls Destroyed . | . . . Machines Disabled . | . . . Actions | -11 -10 -10 --------- Run | Yrd Mat Min Total 1092 | 164 724 204 Wait 63 | . 55 8 Move 878 | 119 580 179 Hop . | . . . Pick Up 34 | 14 18 2 Fast Attach . | . . . Attach 14 | 7 4 3 Detach . | . . . Swap 13 | 1 11 1 Drop 20 | 1 17 2 Fire 68 | 22 39 7 Melee . | . . . Ram . | . . . Kick . | . . . Crush . | . . . Escape Stasis . | . . . Rewire 2 | . . 2 Trap . | . . . Miscellaneous . | . . . Route ------- -11/Scrapyard -10/Materials (discovered 5 exits: [*Mat x3] / *Min x2) -10/Mines History --------- Turn | Location | Event 3 | -11/Scrapyard | Discovered new exit (range 16) 185 | -11/Scrapyard | Entered Materials 311 | -10/Materials | Build established: Mutant 502 | -10/Materials | Discovered new exit (range 3) 555 | -10/Materials | Discovered new exit (range 15) 555 | -10/Materials | Discovered new exit (range 11) 615 | -10/Materials | Discovered new exit (range 7) 685 | -10/Materials | Derelicts attacked the area 686 | -10/Materials | Repaired Lgt. Nuclear Core 776 | -10/Materials | Discovered new exit (range 3) 824 | -10/Materials | Identified exit to Mines 867 | -10/Materials | Entered Mines 923 | -10/Mines | YI-UF0 nonchalantly dropped a Grenade Launcher on the ground 947 | -10/Mines | Received a Rocket Launcher from a helpful Derelict 984 | -10/Mines | Learned 2 Materials zone layouts 1012 | -10/Mines | Assembled infested the area 1025 | -10/Mines | Core integrity fell below 50% 1026 | -10/Mines | Received a Mining Laser from a helpful Derelict 1026 | -10/Mines | Met 8R-AWN 1031 | -10/Mines | Core integrity fell below 20% 1048 | -10/Mines | Destroyed by D-53 Grenadier with Mini Grenade Launcher Last Messages --------------- 01026_ 8R-AWN Rnf. Fission Core severed. 01028_ The unstable cave ceiling collapses. 01029_ as-59111 powers down. 01029_ N6-S17(g): "You're apparently new around these parts, I'll cover you." 01029_ The unstable cave ceiling collapses. 01032_ N6-S17(g): "Mining lasers are a lot more useful than you might think..." 01033_ D-53 Grenadier destroyed. 01036_ The unstable cave ceiling collapses. 01038_ Attempting to rewire as-59111. 01038_ as-59111 cannot be rewired. 01039_ The unstable cave ceiling collapses. 01039_ Attempting to rewire as-59111. 01039_ as-59111 cannot be rewired. 01041_ N6-S17(g) destroyed. 01043_ The unstable cave ceiling collapses. 01044_ U-05 Engineer builds a Wall. 01048_ The unstable cave ceiling collapses. 01048_ Lgt. Nuclear Core destroyed. Map ----- +----------------------------------------------------+ | | | | | | | | | | | | | ?????????????????????????????????????????? | | ?????????????????????????????????????????? | | ???????????????######????????????????????? | | ??????????????## ###?????????????????? | | ?????????????## #?????????????????? | | ?????????????# ##?????????????????? | | ?????????????# #?????????????????? | | ?????????????# # #?????????????????? | | ?????????????# #?????????????????? | | ?????????????# #????? #????????? | | ?????????????## #### #????????? | | ?????????????# %* % #???????? | | ?????????????# ####% #???? | | ????????????## #?????????????????? | | ????????????# # #?????????????????? | | ????????????# #?????????????????? | | ????????????## % # #?????????????????? | | ????????????# # #?????????????????? | | ????????????## #a######## #????????? | | ????????????##%# d @ #????????? | | ????????????## # ############????????? | | ?????????????# ## ###???????????????????? | | ????????????? ?# ##?????????????????????? | | ????????????###?# #??????????????????????? | | ????????????????# #??????????????????????? | | ????????????????# #??????????????????????? | | ????????????????# #??????????????????????? | | ???????????????## #??????????????????????? | | ??????????????## ##?????????????????????? | | ??????????????# !#?????????????????????? | | #??#####?????## #?????????????????????? | | #### ##????# ##??????????? ????????? | | ## ##???#% #???????????? ??????? | | #??## #???????????? ???? | | #???# #???????????? ?? | | ##???# #???????????? #? | | ### #????# ! #???????????? ?? | | ??### #????## #???????????# #?? | | ????# #?????## ##########?# ##? | | ????# #??????# !% #? ?? | | ????# #??????##! [ =#? ??? | | ????# #???????## ####### #? ???? | | ????# ]#????????###?????# #?# ????? | | ???## ##???????????????# #?# ??????? | +----------------------------------------------------+ Best States ------------- Heat Dissipation 39 Energy Generation 14 Energy Capacity 250 Matter Stores 300 Matter Capacity 300 Sight Range 16 Terrain Scan Range 16 Terrain Scan Density 10 ECM Strength 1 Evasion (%) 50 Targeting Accuracy 5 Item Schematics ----------------- None Robot Schematics ------------------ None Fabricated ------------ Nothing Repaired ---------- Lgt. Nuclear Core | 58% | -10/Materials Studied --------- None Alien Tech Used ----------------- None Achievements -------------- Hunted Challenges ------------ None Game ------ Seed ProtonAmuletCannon Manual? 0 Play Time 00:16:37 Cumulative 12.2 hours Start 2026.03.01 @ 00:25:03 End 2026.03.01 @ 00:38:51 Sessions 1 Manual Loads 0 Difficulty Rogue Special Mode None Game No. 21 Rogue 18 Adventurer 3 Explorer 0 Win Type - Total 1 Types 1/0/0/0/0/0/0/0/0/0 Lore% 11 Gallery% 16 Achievement% 18 Wizard Run 0 Options --------- Layout 1 ASCII 0 Keyboard 0 Movement Numpad Keybinds 0 Fullscreen 2 Font 24/Proggy Map View 50x35 Zoom Use 0% Tactical HUD 1 Map Filters NONE Filters NONE Steam 1 RUN: 825c566c-568d-47a3-82ed-c5d61e0d5586